bitfinex-derivatives/quotes_ETHF0:USTF0_20260306
["timestamp","ask_amount","ask_price","bid_price","bid_amount"]
[1772781150394,0.00500384,2070.7,2070.0,5.05458541]
[1772781150893,0.00500384,2070.7,2070.1,5.03811204]
[1772781151795,4.65872603,2070.7,2070.1,5.03811204]
[1772781152491,0.00500384,2070.7,2070.1,5.03811204]
[1772781154597,4.65872603,2070.7,2070.1,5.03811204]
[1772781155897,4.65872603,2070.7,2069.6,0.24156]
[1772781155898,4.65872603,2070.7,2069.9,5.03811204]
[1772781156191,4.65872603,2070.7,2069.5,3.47141634]
[1772781156192,4.89523219,2070.2,2069.5,3.47141634]
[1772781156393,4.65372219,2069.9,2069.2,5.03811204]
[1772781156594,10.48313864,2069.8,2069.2,5.03811204]
[1772781156787,6.29418984,2070.2,2069.0,5.03811204]
[1772781156788,5.82941645,2069.7,2069.0,5.03811204]
[1772781156990,5.82941645,2069.6,2069.0,5.03811204]
[1772781157193,4.65372219,2069.7,2069.0,5.03811204]
[1772781157394,4.65372219,2069.5,2069.0,5.03811204]
[1772781159200,4.65372219,2069.8,2069.0,5.03811204]
[1772781159402,4.65372219,2069.6,2069.0,5.03811204]
[1772781163199,4.65372219,2069.6,2068.9,5.04420742]
[1772781166998,4.65372219,2069.8,2068.9,5.04420742]
[1772781168902,4.65372219,2069.6,2068.9,5.04420742]
[1772781175006,4.65372219,2069.6,2069.0,5.03811204]
[1772781176611,0.00500384,2070.7,2069.8,5.03811204]
[1772781176914,0.00500384,2070.7,2070.0,5.03811204]
[1772781177408,4.65872603,2070.7,2070.0,13.86011204]
[1772781177609,4.65872603,2070.7,2070.1,5.03811204]
[1772781178713,0.00500384,2070.7,2070.1,5.03811204]
[1772781179415,4.65872603,2070.7,2070.1,5.03811204]
[1772781180210,4.65872603,2070.7,2070.2,5.00950143]
[1772781180712,4.65872603,2070.7,2070.0,5.00950143]
[1772781182407,4.65872603,2070.7,2070.0,13.84950143]
[1772781182610,4.65872603,2070.7,2070.1,5.00950143]
[1772781183418,4.65872603,2070.7,2070.0,8.825]
[1772781183718,4.65872603,2070.7,2070.1,5.00950143]
[1772781189321,4.65872603,2070.7,2069.3,5.00950143]
[1772781189523,4.65872603,2070.7,2070.0,5.00950143]
[1772781189824,4.65872603,2070.7,2070.1,5.00950143]
[1772781191517,0.00500384,2070.7,2070.1,5.00950143]
[1772781191923,5.48969417,2070.7,2070.1,5.00950143]
[1772781192521,0.00500384,2070.7,2070.1,5.00950143]
[1772781193020,5.48969417,2070.7,2070.1,5.00950143]
[1772781193227,0.00500384,2070.7,2070.1,5.00950143]
[1772781194526,5.48969417,2070.7,2070.1,5.00950143]
[1772781195026,0.00500384,2070.7,2070.1,5.00950143]
[1772781196928,5.48969417,2070.7,2070.1,5.00950143]
[1772781197429,5.48969417,2070.7,2070.2,13.86650143]
[1772781197628,5.48969417,2070.7,2070.2,13.86750143]
[1772781198129,5.48969417,2070.7,2070.2,5.00950143]
[1772781205133,11.31933686,2070.6,2070.2,5.00950143]
[1772781205334,5.48469033,2070.6,2070.2,5.00950143]
[1772781206136,5.84515785,2070.5,2070.2,5.00950143]
[1772781206331,5.48469033,2070.6,2070.2,5.00950143]
[1772781206532,5.84515785,2070.5,2070.2,5.00950143]
[1772781206734,5.48469033,2070.6,2070.2,5.00950143]
[1772781206935,5.84515785,2070.5,2070.2,5.00950143]
[1772781207136,5.48469033,2070.6,2070.2,5.00950143]
[1772781207336,5.84517349,2070.5,2070.2,5.00950143]
[1772781207638,5.48469033,2070.6,2070.2,5.00950143]
[1772781207839,5.84517349,2070.5,2070.2,5.00950143]
[1772781208039,5.48969417,2070.7,2070.2,5.00950143]
[1772781208239,5.84514616,2070.6,2070.2,5.00950143]
[1772781208434,5.84514616,2070.5,2070.2,5.00950143]
[1772781208640,5.48969417,2070.7,2070.3,5.00950143]
[1772781208839,5.84514616,2070.6,2070.3,5.00950143]
[1772781209037,5.84514616,2070.5,2070.3,5.00950143]
[1772781209843,5.48469033,2070.4,2069.8,5.00950143]
[1772781210042,4.96355414,2070.2,2069.8,5.00950143]
[1772781210643,5.28523217,2070.4,2069.8,5.00950143]
[1772781210844,5.84577346,2070.3,2069.8,5.00950143]
[1772781211044,5.28523217,2070.4,2069.8,5.00950143]
[1772781211244,5.84554783,2070.3,2069.8,5.00950143]
[1772781211444,5.28523217,2070.4,2069.8,5.00950143]
[1772781211741,5.28523217,2070.6,2069.8,5.00950143]
[1772781212045,5.84534283,2070.5,2069.8,5.00950143]
[1772781212244,5.84534283,2070.4,2069.8,5.00950143]
[1772781212440,5.28523217,2070.6,2069.8,5.00950143]
[1772781212744,5.28523217,2070.4,2069.8,5.00950143]
[1772781212944,5.84500012,2070.3,2070.0,5.08263222]
[1772781213145,5.28523217,2070.4,2070.1,5.08263222]
[1772781213345,5.84533919,2070.3,2070.1,5.08263222]
[1772781213546,5.28523217,2070.4,2070.1,5.08263222]
[1772781213747,5.28523217,2070.5,2070.1,5.08263222]
[1772781213947,11.13041762,2070.4,2070.1,5.08263222]
[1772781214246,5.28523217,2070.4,2070.1,5.08263222]
[1772781216037,5.28523217,2070.6,2070.1,5.08263222]
[1772781216238,11.13007857,2070.5,2070.1,5.08263222]
[1772781216438,5.8448464,2070.4,2070.1,5.08263222]
[1772781216642,5.28523217,2070.6,2070.1,5.08263222]
[1772781216837,5.8448464,2070.5,2070.1,5.08263222]
[1772781217047,5.8448464,2070.4,2070.1,5.08263222]
[1772781217347,5.28523217,2070.6,2070.1,5.08263222]
[1772781217643,5.84471821,2070.5,2070.1,5.08263222]
[1772781217950,0.00500384,2070.7,2070.1,5.08263222]
[1772781218354,5.28523217,2071.1,2070.1,5.08263222]
[1772781219651,5.28913868,2071.1,2070.1,5.08263222]
[1772781219945,0.00390651,2071.1,2070.3,5.08263222]
[1772781220148,5.28523217,2071.5,2070.5,5.08263222]
[1772781220952,5.28523217,2071.5,2070.7,5.08263222]
[1772781221447,5.28989732,2071.5,2070.7,5.08798373]
[1772781223951,0.00466515,2071.5,2070.7,5.08798373]
[1772781226854,5.28989732,2071.5,2070.7,5.08798373]
[1772781229256,5.28989732,2071.5,2070.9,5.08263222]
[1772781229560,5.28989732,2071.5,2071.1,5.08263222]
[1772781232257,5.28989732,2071.5,2070.8,5.08263222]
[1772781232560,5.28989732,2071.5,2070.9,8.904]
[1772781232758,5.28989732,2071.5,2070.9,13.98663222]
[1772781233862,5.28989732,2071.5,2071.0,5.08263222]
[1772781234357,0.00466515,2071.5,2071.0,5.08263222]
[1772781234762,5.28989732,2071.5,2071.0,5.08263222]
[1772781235062,0.00466515,2071.5,2071.0,5.08263222]
[1772781235964,5.28523217,2072.2,2071.0,5.08263222]
[1772781236160,5.28523217,2072.0,2071.0,5.08263222]
[1772781236954,5.29133962,2072.0,2071.0,5.08263222]
[1772781239366,0.00610745,2072.0,2071.2,5.08263222]
[1772781240462,0.00610745,2072.0,2071.4,4.82313631]
[1772781240668,0.00610745,2072.0,2071.6,4.82313631]
[1772781240868,5.05407445,2072.2,2071.6,4.82313631]
[1772781241770,5.05819144,2072.2,2071.6,4.82313631]
[1772781242971,0.00411699,2072.2,2071.8,4.82313631]
[1772781243170,5.05407445,2072.4,2071.8,4.82313631]
[1772781243370,5.05407445,2072.6,2071.8,4.82313631]
[1772781244169,5.05889146,2072.6,2071.8,4.82313631]
[1772781245072,5.05889146,2072.6,2072.0,4.82313631]
[1772781246878,5.05407445,2072.5,2072.0,13.75613631]
[1772781247066,5.05407445,2072.5,2072.1,4.82313631]
[1772781247572,5.05889146,2072.6,2072.1,4.82313631]
[1772781249071,5.05889146,2072.6,2071.4,4.82313631]
[1772781249276,5.05407445,2072.4,2071.6,4.82313631]
[1772781249872,5.05407445,2072.4,2071.7,8.941]
[1772781250076,5.05407445,2072.4,2071.8,4.82313631]
[1772781250276,5.05407445,2072.4,2071.9,13.76513631]
[1772781251078,5.05407445,2072.4,2072.0,4.82313631]
[1772781252583,5.05407445,2072.4,2071.9,13.76513631]
[1772781254085,5.05407445,2072.4,2071.9,4.82313631]
[1772781254284,5.05407445,2072.4,2071.9,13.77413631]
[1772781255086,5.05407445,2072.4,2071.3,4.82313631]
[1772781255283,5.05407445,2072.4,2071.5,4.82313631]
[1772781259090,5.05889146,2072.6,2071.5,4.82313631]
[1772781261087,5.05889146,2072.6,2071.6,4.82313631]
[1772781264189,5.05407445,2072.4,2071.6,4.82313631]
[1772781268295,5.05407445,2072.4,2071.7,13.77713631]
[1772781268491,5.05407445,2072.2,2071.8,4.82313631]
[1772781268695,4.03125419,2072.6,2071.8,4.82313631]
[1772781268696,5.05407445,2072.5,2071.8,4.82313631]
[1772781268890,5.59363239,2072.4,2071.8,4.82313631]
[1772781269096,5.05407445,2072.5,2071.8,4.82313631]
[1772781269394,10.65026083,2072.4,2071.8,4.82313631]
[1772781269594,5.05407445,2072.4,2071.8,4.82313631]
[1772781270598,5.05407445,2072.4,2071.9,4.98468799]
[1772781270793,0.00481701,2072.6,2072.1,4.98468799]
[1772781270999,5.59609787,2072.5,2072.1,4.98468799]
[1772781271197,4.97300172,2072.6,2072.1,4.98468799]
[1772781271400,4.02643718,2072.9,2072.3,4.98468799]
[1772781271597,10.56526038,2072.8,2072.3,4.98468799]
[1772781271797,4.96818471,2072.8,2072.3,4.98468799]
[1772781272595,5.53637667,2072.7,2072.3,0.00480499]
[1772781272801,4.96818471,2072.6,2072.3,0.00480499]
[1772781275600,4.96818471,2072.6,2072.1,8.955]
[1772781276399,4.96818471,2072.6,2072.1,8.96007854]
[1772781276602,4.96818471,2072.6,2072.1,13.94476653]
[1772781277998,4.96818471,2072.6,2072.1,0.00507854]
[1772781278203,4.96818471,2072.6,2072.1,4.98976653]
[1772781279608,4.96818471,2072.6,2072.1,0.00507854]
[1772781279907,4.96818471,2072.2,2071.9,8.958]
[1772781280301,4.96818471,2072.2,2071.9,13.94268799]
[1772781280811,4.96818471,2072.6,2072.0,4.98468799]
[1772781281010,5.58849892,2072.5,2072.0,4.98468799]
[1772781281308,4.96818471,2072.6,2072.0,4.98468799]
[1772781281505,10.55666294,2072.5,2072.0,4.98468799]
[1772781281705,4.96818471,2072.5,2072.0,4.98468799]
[1772781286111,4.96818471,2072.4,2072.0,8.966]
[1772781286814,4.96818471,2072.4,2072.0,13.95068799]
[1772781287712,4.96818471,2072.4,2072.0,13.95368799]
[1772781290217,4.96818471,2072.4,2072.1,4.98468799]
[1772781291611,4.96818471,2072.4,2071.9,0.00344145]
[1772781291815,4.96818471,2072.4,2072.0,8.977]
[1772781292418,4.96818471,2072.4,2072.0,13.96168799]
[1772781292720,4.96818471,2072.4,2072.0,8.977]
[1772781293020,4.96818471,2072.4,2072.0,13.96168799]
[1772781293921,4.96818471,2072.4,2072.0,8.977]
[1772781294923,4.96818471,2072.4,2071.9,4.98812944]
[1772781295222,4.96818471,2072.4,2072.0,8.988]
[1772781296222,4.96818471,2072.4,2071.9,4.98812944]
[1772781296423,4.96818471,2072.4,2072.0,8.992]
[1772781296619,4.96818471,2072.4,2071.9,0.00344145]
[1772781297026,4.96818471,2072.6,2071.9,4.98812944]
[1772781297224,10.55947422,2072.5,2071.9,4.98812944]
[1772781297422,4.96818471,2072.4,2071.9,4.98812944]
[1772781297821,4.96818471,2072.4,2071.9,13.98512944]
[1772781300328,4.96818471,2072.4,2072.0,4.9526719]
[1772781301329,4.59019679,2072.6,2072.0,4.9526719]
[1772781301523,10.18114127,2072.5,2072.0,4.9526719]
[1772781301729,4.59019679,2072.7,2072.0,4.9526719]
[1772781301931,5.59068595,2072.6,2072.0,4.9526719]
[1772781302129,4.59019679,2072.7,2072.0,4.9526719]
[1772781302330,5.59159249,2072.6,2072.0,4.9526719]
[1772781302526,4.59019679,2072.7,2072.0,4.9526719]
[1772781302828,4.59019679,2072.2,2071.2,4.9526719]
[1772781303020,4.59019679,2072.2,2070.9,0.24142]
[1772781303021,4.59019679,2072.0,2071.3,13.9666719]
[1772781303227,4.59019679,2071.8,2071.4,9.015]
[1772781303429,4.59019679,2071.8,2071.4,13.9676719]
[1772781303929,4.59019679,2071.8,2071.1,13.9696719]
[1772781304133,4.59019679,2071.8,2071.2,4.9526719]
[1772781304924,4.59019679,2071.8,2071.2,4.957603]
[1772781305130,4.59019679,2072.0,2071.2,4.957603]
[1772781305430,4.59019679,2071.8,2071.2,4.957603]
[1772781305631,4.59019679,2071.8,2071.3,13.9746719]
[1772781306131,4.59019679,2071.8,2071.4,4.9526719]
[1772781306636,4.59019679,2072.4,2071.4,4.9526719]
[1772781306827,5.5788803,2072.3,2071.5,4.9526719]
[1772781307032,4.59019679,2072.4,2071.5,4.9526719]
[1772781307336,4.59019679,2072.6,2071.5,4.9526719]
[1772781307535,5.57840308,2072.5,2071.5,4.9526719]
[1772781307735,4.59019679,2072.6,2071.5,4.9526719]
[1772781307935,5.57788714,2072.5,2071.5,4.9526719]
[1772781308135,4.59019679,2072.6,2071.5,4.9526719]
[1772781308336,10.16822045,2072.5,2071.5,4.9526719]
[1772781308635,4.59019679,2072.5,2071.5,4.9526719]
[1772781308836,4.59019679,2072.6,2071.5,5.1940119]
[1772781309238,5.57791495,2072.5,2071.5,5.1940119]
[1772781309534,4.59019679,2072.6,2071.5,5.1940119]
[1772781310937,4.59019679,2072.6,2071.7,4.9526719]
[1772781312338,4.59019679,2072.6,2071.9,4.9526719]
[1772781312737,4.59019679,2072.6,2072.0,9.044]
[1772781312938,4.59019679,2072.6,2071.9,4.9526719]
[1772781313234,4.59019679,2072.6,2072.0,13.9976719]
[1772781313437,4.59019679,2072.6,2072.0,4.9526719]
[1772781320433,4.59019679,2072.6,2072.1,9.063]
[1772781320738,4.59019679,2072.6,2072.2,4.9526719]
[1772781321340,0.00561049,2072.8,2072.2,4.9526719]
[1772781321638,4.59019679,2072.7,2072.2,4.9526719]
[1772781327539,0.00561049,2072.8,2072.2,4.9526719]
[1772781328649,4.59019679,2073.0,2072.2,4.9526719]
[1772781329338,4.59019679,2073.0,2072.4,4.9526719]
[1772781329534,4.59019679,2073.2,2072.4,4.9526719]
[1772781329735,10.16781036,2073.1,2072.4,4.9526719]
[1772781329945,4.59019679,2073.1,2072.4,4.9526719]
[1772781331846,4.7138208,2073.2,2072.6,4.6203684]
[1772781332247,4.7138208,2073.2,2072.6,9.097]
[1772781335350,4.7138208,2073.2,2072.3,4.6203684]
[1772781335547,4.70998196,2073.0,2072.4,9.105]
[1772781335846,4.70998196,2073.0,2072.4,13.7253684]
[1772781338050,4.70998196,2072.8,2072.1,13.7313684]
[1772781338252,4.70998196,2072.8,2072.2,9.111]
[1772781338850,4.70998196,2072.8,2072.2,13.7313684]
[1772781342552,4.70998196,2072.8,2072.0,4.6203684]
[1772781342754,4.70998196,2072.6,2072.0,4.6203684]
[1772781343453,4.70998196,2072.4,2071.7,4.6203684]
[1772781343655,4.70998196,2072.2,2071.8,4.6203684]
[1772781344753,4.70998196,2072.5,2071.8,4.6203684]
[1772781344948,10.31384066,2072.4,2071.8,4.6203684]
[1772781345256,10.31384066,2072.3,2071.8,4.6203684]
[1772781345456,4.70998196,2072.3,2071.8,4.6203684]
[1772781359168,4.70998196,2072.3,2071.8,13.7813684]
[1772781360567,4.34872095,2071.9,2071.5,13.48962184]
[1772781361365,4.34872095,2072.1,2071.6,4.32462184]
[1772781363476,4.34872095,2072.3,2071.6,4.32462184]
[1772781363679,9.94400727,2072.2,2071.6,4.32462184]
[1772781363874,4.34872095,2072.2,2071.6,4.32462184]
[1772781364570,4.34872095,2072.1,2071.6,4.32462184]
[1772781365878,4.34872095,2072.1,2071.4,4.32462184]
[1772781366077,4.34872095,2072.1,2071.6,9.179]
[1772781367583,4.34872095,2072.1,2071.3,4.32462184]
[1772781367784,4.34872095,2072.1,2071.4,9.184]
[1772781368084,4.34872095,2072.1,2071.4,13.50862184]
[1772781368479,4.34872095,2071.9,2071.5,4.32462184]
[1772781368784,4.34872095,2071.9,2071.5,13.51062184]
[1772781369287,4.34872095,2071.9,2071.5,4.32462184]
[1772781369483,4.34872095,2071.9,2071.5,13.51262184]
[1772781372180,4.34872095,2071.8,2071.5,13.51262184]
[1772781373486,4.34872095,2071.8,2071.3,4.32462184]
[1772781373690,4.34872095,2071.7,2071.3,4.32462184]
[1772781373990,4.35453486,2071.7,2071.3,4.32462184]
[1772781374990,4.35453486,2071.7,2071.2,13.53055294]
[1772781375192,4.35453486,2071.7,2071.3,4.32462184]
[1772781378893,4.35453486,2071.7,2071.2,9.2059311]
[1772781379093,4.35453486,2071.7,2071.2,13.53055294]
[1772781379593,4.35453486,2071.7,2071.3,4.32462184]
[1772781379795,4.34872095,2071.6,2071.2,4.32955294]
[1772781379989,4.35453486,2071.7,2071.2,4.32955294]
[1772781380390,4.34872095,2072.0,2071.4,1.58130594]
[1772781380595,4.34872095,2072.0,2071.5,4.32462184]
[1772781380796,4.34872095,2072.0,2071.6,4.32462184]
[1772781380991,4.34872095,2072.2,2071.6,4.32462184]
[1772781381198,9.95276658,2072.1,2071.6,4.32462184]
[1772781381395,4.34872095,2072.1,2071.6,4.32462184]
[1772781381596,4.3549245,2072.1,2071.6,4.32462184]
[1772781384794,0.00620355,2072.1,2071.6,4.32462184]
[1772781384999,8.38799101,2072.4,2071.7,4.32462184]
[1772781385198,9.95450975,2072.3,2071.7,4.32462184]
[1772781385397,9.95450975,2072.2,2071.7,4.32462184]
[1772781385598,4.34872095,2072.2,2071.7,4.32462184]
[1772781386098,4.35365123,2072.2,2071.7,4.32462184]
[1772781386800,0.00493028,2072.2,2071.7,4.32462184]
[1772781388302,6.04004103,2072.6,2072.1,4.32462184]
[1772781388303,8.38799101,2072.6,2072.1,4.32462184]
[1772781388496,9.95550708,2072.5,2072.1,4.32462184]
[1772781388703,5.60678613,2072.4,2072.1,4.32462184]
[1772781388899,4.34872095,2072.5,2072.1,4.32462184]
[1772781389100,5.60652766,2072.4,2072.1,4.32462184]
[1772781389298,0.0059476,2072.4,2072.1,4.32462184]
[1772781389704,4.34872095,2072.5,2072.1,4.32462184]
[1772781389905,5.60584058,2072.4,2072.1,4.32462184]
[1772781390206,4.34872095,2072.5,2072.1,4.32462184]
[1772781390499,4.6054456,2072.6,2072.1,4.32462184]
[1772781390802,13.10662158,2074.5,2072.0,9.238]
[1772781390803,4.6054456,2073.3,2072.5,4.49828176]
[1772781391009,4.6054456,2073.3,2072.7,4.49828176]
[1772781391201,4.6054456,2073.3,2072.8,4.49828176]
[1772781391704,4.61099366,2073.3,2072.8,4.50240178]
[1772781394406,6.05283138,2073.9,2072.8,4.50240178]
[1772781394407,4.6054456,2073.6,2072.9,4.49828176]
[1772781395411,4.60949028,2073.6,2072.9,4.49828176]
[1772781411722,4.6054456,2073.8,2073.3,4.49828176]
[1772781412528,4.6054456,2074.2,2073.3,4.49828176]
[1772781413027,4.61053926,2074.2,2073.3,4.49828176]
[1772781416026,4.61053926,2074.2,2073.5,4.49828176]
[1772781419827,0.00509366,2074.2,2073.5,4.49828176]
[1772781420629,4.62058532,2074.4,2073.5,4.49828176]
[1772781420929,4.03927006,2074.7,2073.5,4.49828176]
[1772781421124,4.62058532,2074.8,2073.8,4.33040247]
[1772781421326,4.62058532,2074.8,2074.0,4.33040247]
[1772781421533,4.62453777,2074.8,2074.0,4.33040247]
[1772781426926,6.29373138,2075.4,2074.0,4.33040247]
[1772781426927,4.62058532,2075.2,2074.0,4.33040247]
[1772781427136,4.62058532,2075.2,2074.3,4.33040247]
[1772781427332,4.62058532,2075.4,2074.5,1.5783722]
[1772781427528,4.62058532,2075.8,2074.7,4.33040247]
[1772781427732,4.62058532,2075.8,2074.7,13.60940247]
[1772781428034,4.62673739,2075.8,2074.8,4.33040247]
[1772781430634,4.62058532,2075.5,2074.7,4.33416003]
[1772781431036,4.62058532,2075.5,2074.7,0.00375756]
[1772781431539,4.62058532,2075.2,2074.4,4.33040247]
[1772781432635,4.62058532,2075.2,2074.4,4.33632994]
[1772781434742,4.62058532,2075.2,2074.4,0.00592747]
[1772781435642,4.62058532,2075.2,2074.4,4.33632994]
[1772781437637,6.19895752,2075.2,2074.4,0.00592747]
[1772781437834,4.62058532,2075.1,2074.4,0.00592747]
[1772781438540,4.62058532,2075.1,2074.3,4.33040247]
[1772781438743,4.62058532,2074.8,2073.8,4.33040247]
[1772781439244,4.62058532,2074.5,2073.4,4.33040247]
[1772781439741,4.62058532,2074.5,2073.4,4.33636207]
[1772781453555,4.19607369,2074.8,2073.4,4.33636207]
[1772781454358,4.19607369,2074.8,2073.6,4.39859437]
[1772781457961,4.19607369,2074.6,2073.6,4.39859437]
[1772781463565,4.19607369,2074.6,2073.8,4.39859437]
[1772781464965,4.19607369,2074.8,2073.8,4.39859437]
[1772781465866,4.19607369,2074.8,2073.9,4.39859437]
[1772781476772,4.19607369,2074.7,2073.9,4.39859437]
[1772781478973,4.19607369,2074.6,2073.9,4.39859437]
[1772781480775,4.19607369,2074.6,2074.1,4.37544186]
[1772781480976,4.23114472,2074.7,2074.1,4.37544186]
[1772781481178,3.65785928,2074.7,2074.1,4.37544186]
[1772781481877,4.23114472,2074.1,2073.7,6.95544186]
[1772781482177,4.23656025,2074.1,2073.5,4.37544186]
[1772781483372,4.23114472,2074.0,2073.5,4.37544186]
[1772781484983,4.23114472,2073.8,2073.1,4.37544186]
[1772781485981,4.23114472,2073.8,2073.1,4.378858]
[1772781486182,4.23114472,2073.8,2073.2,4.37544186]
[1772781490781,4.23114472,2073.8,2073.1,0.00341614]
[1772781491082,4.23114472,2073.8,2073.2,4.37544186]
[1772781491985,1.58320877,2074.1,2073.4,4.37544186]
[1772781491986,0.00541553,2074.1,2073.4,4.37544186]
[1772781492189,4.23114472,2074.0,2073.5,4.37544186]
[1772781498792,4.23114472,2074.4,2074.0,4.37544186]
[1772781499993,4.23602228,2074.4,2073.8,13.69344186]
[1772781500298,4.23602228,2074.4,2073.5,1.57779324]
[1772781500299,4.23602228,2074.4,2073.7,4.37544186]
[1772781506403,4.23114472,2074.2,2073.6,4.37544186]
[1772781507700,4.23114472,2074.2,2073.8,4.37544186]
[1772781508005,4.23602228,2074.4,2073.8,4.37544186]
[1772781513815,4.23602228,2074.4,2073.3,8.61330853]
[1772781514015,3.99374935,2074.1,2073.5,4.08759944]
[1772781519617,3.99374935,2073.9,2073.3,4.08759944]
[1772781527926,3.99374935,2073.9,2073.5,4.08759944]
[1772781528328,3.99374935,2074.0,2073.7,4.08759944]
[1772781528631,3.99374935,2074.1,2073.7,4.08759944]
[1772781528926,3.99374935,2074.1,2073.5,4.08759944]
[1772781535826,3.99374935,2073.9,2073.2,4.08759944]
[1772781538030,3.99374935,2073.9,2073.1,0.00341614]
[1772781538329,3.99374935,2073.5,2072.9,4.08759944]
[1772781538721,3.99374935,2073.3,2072.7,4.08759944]
[1772781539123,3.99374935,2073.3,2072.7,4.09179293]
[1772781541431,3.99374935,2073.3,2072.7,0.00419349]
[1772781544528,9.117,2073.4,2072.5,4.14127068]
[1772781544529,3.99391729,2073.1,2072.5,4.14127068]
[1772781545529,3.99391729,2073.1,2072.5,4.14565319]
[1772781553335,3.99391729,2073.1,2072.5,0.00438251]
[1772781553641,3.99391729,2073.1,2072.5,4.14565319]
[1772781554542,13.11091729,2073.4,2072.5,4.38688319]
[1772781555142,13.11091729,2073.4,2072.6,4.14127068]
[1772781556243,3.99391729,2073.3,2072.6,4.14127068]
[1772781556741,9.117,2073.4,2072.6,4.14127068]
[1772781557040,3.99391729,2073.5,2072.7,4.14127068]
[1772781574456,3.91460683,2073.3,2072.7,4.14127068]
[1772781576757,3.91460683,2073.5,2072.7,4.14127068]
[1772781576951,3.91460683,2073.7,2072.7,4.38248068]
[1772781577158,3.91460683,2073.9,2072.8,3.7209365]
[1772781577357,3.91460683,2073.9,2073.0,3.7209365]
[1772781577559,3.91460683,2073.9,2073.2,3.7209365]
[1772781578456,13.10560683,2074.2,2073.2,3.7209365]
[1772781578758,9.3641963,2074.1,2073.2,3.7209365]
[1772781578957,3.91460683,2074.1,2073.2,3.7209365]
[1772781582253,3.91460683,2074.1,2073.3,3.7209365]
[1772781596574,3.91460683,2074.3,2073.3,3.9620765]
[1772781596764,3.91460683,2074.1,2073.3,3.9620765]
[1772781597572,3.91460683,2074.1,2073.3,3.7209365]
[1772781600272,3.91460683,2074.1,2073.3,6.3009365]
[1772781600473,3.91460683,2074.1,2073.4,3.51342604]
[1772781600773,3.43746885,2074.3,2073.4,3.51342604]
[1772781600974,3.44234641,2074.4,2073.5,3.51342604]
[1772781601169,0.00487756,2074.4,2073.7,3.51342604]
[1772781601374,0.00487756,2074.4,2073.8,3.51342604]
[1772781602469,0.00487756,2074.4,2074.0,3.51342604]
[1772781602775,3.43746885,2074.9,2074.4,3.51342604]
[1772781603675,3.44092937,2074.9,2074.4,3.51342604]
[1772781608382,3.43746885,2075.4,2074.5,3.51342604]
[1772781608583,3.43746885,2075.4,2074.7,3.51342604]
[1772781609584,3.44339443,2075.4,2074.7,3.51342604]
[1772781610887,3.43746885,2075.0,2074.1,3.51342604]
[1772781611586,3.43746885,2075.0,2074.3,3.51342604]
[1772781612288,3.43746885,2074.8,2074.3,3.51342604]
[1772781613992,3.43746885,2074.8,2074.1,3.51342604]
[1772781616690,3.43746885,2075.0,2074.3,3.51342604]
[1772781618191,3.43746885,2074.6,2074.1,3.51342604]
[1772781618395,4.27462661,2075.3,2074.1,3.51342604]
[1772781618396,3.43746885,2074.4,2074.1,3.51342604]
[1772781618696,3.43746885,2075.1,2074.1,3.51342604]
[1772781625299,3.43746885,2075.0,2074.1,3.51342604]
[1772781629502,3.43746885,2074.9,2074.1,3.51342604]
[1772781640706,3.2874516,2074.8,2074.1,3.51342604]
[1772781643108,4.03371661,2074.9,2074.1,3.51342604]
[1772781643310,8.89886659,2074.9,2074.1,3.51342604]
[1772781643512,3.2874516,2074.8,2074.1,3.51342604]
[1772781644410,4.03371661,2074.9,2074.2,1.57769838]
[1772781644713,7.32116821,2075.0,2074.3,3.3260864]
[1772781645512,16.48216821,2075.2,2074.5,3.3260864]
[1772781645706,6.05875696,2075.4,2074.9,3.3260864]
[1772781645707,4.03964219,2075.4,2074.9,3.3260864]
[1772781645912,0.00592558,2075.4,2074.9,3.3260864]
[1772781646518,7.32116821,2075.7,2075.1,3.3260864]
[1772781647013,7.58810894,2076.0,2075.5,3.3260864]
[1772781647014,3.2874516,2076.0,2075.5,3.3260864]
[1772781647214,3.2874516,2075.9,2075.0,3.3260864]
[1772781647519,3.2874516,2075.7,2075.1,3.3260864]
[1772781647919,0.00605688,2075.9,2075.1,3.3260864]
[1772781648121,3.2874516,2075.8,2075.1,3.3260864]
[1772781648615,3.29350848,2075.9,2075.1,3.3260864]
[1772781648816,3.29350848,2075.9,2075.3,3.3260864]
[1772781649418,0.00605688,2075.9,2075.3,3.3260864]
[1772781650614,3.2874516,2076.1,2075.5,3.3260864]
[1772781650819,3.2874516,2076.3,2075.5,3.3260864]
[1772781651614,3.29258651,2076.3,2075.5,3.3260864]
[1772781651817,3.29258651,2076.3,2075.7,3.3260864]
[1772781652022,3.2874516,2076.4,2075.7,3.3260864]
[1772781652517,3.2874516,2076.4,2075.9,3.3260864]
[1772781652716,3.2874516,2076.6,2075.9,3.3260864]
[1772781652914,3.2874516,2076.4,2075.9,3.3260864]
[1772781653112,3.29255125,2076.4,2075.9,3.3260864]
[1772781654023,3.2874516,2077.0,2076.4,3.3260864]
[1772781654315,3.2874516,2077.0,2075.5,1.81857838]
[1772781654316,3.2874516,2076.9,2076.2,3.3260864]
[1772781654723,3.2874516,2077.3,2076.4,3.3260864]
[1772781655125,0.00597923,2077.3,2076.8,3.3260864]
[1772781655329,0.00597923,2077.3,2076.8,3.33107254]
[1772781656025,3.29343083,2077.3,2076.8,3.33107254]
[1772781657523,3.29343083,2077.3,2076.8,0.00498614]
[1772781657719,3.29343083,2077.3,2076.3,3.3260864]
[1772781658625,3.29343083,2077.3,2076.3,3.33154147]
[1772781660529,3.29343083,2077.3,2076.3,0.00545507]
[1772781660730,3.29343083,2077.3,2076.3,3.34723342]
[1772781667034,3.31355986,2077.1,2076.3,0.00545507]
[1772781667229,3.31355986,2077.1,2075.5,9.239]
[1772781667230,3.31355986,2076.9,2075.9,3.34177835]
[1772781668331,3.31355986,2076.9,2075.9,3.34677882]
[1772781678440,3.31355986,2076.9,2076.0,3.34177835]
[1772781678733,3.31355986,2076.9,2076.1,3.34177835]
[1772781679844,0.00597923,2077.3,2076.1,3.34177835]
[1772781679845,3.31953909,2077.3,2076.1,3.34177835]
[1772781680240,0.00597923,2077.3,2076.3,3.34177835]
[1772781680441,0.00597923,2077.3,2076.3,9.36378611]
[1772781680743,0.00597923,2077.3,2076.4,3.34177835]
[1772781682744,0.00597923,2077.3,2076.5,3.34177835]
[1772781683546,3.31355986,2077.7,2076.7,3.34177835]
[1772781684346,3.31969599,2077.7,2076.7,3.34177835]
[1772781695559,0.00613613,2077.7,2076.7,3.34177835]
[1772781696652,3.16477896,2077.7,2076.7,3.34177835]
[1772781701858,3.16477896,2077.7,2076.4,3.16178963]
[1772781704462,3.15864283,2077.5,2076.4,3.16178963]
[1772781705263,3.15864283,2077.3,2076.1,3.16178963]
[1772781706961,3.15864283,2077.2,2076.1,3.16178963]
[1772781707963,3.15864283,2077.1,2076.1,3.16178963]
[1772781709967,3.15864283,2077.0,2076.1,3.16178963]
[1772781716368,3.15864283,2077.3,2076.1,3.16178963]
[1772781720070,3.26298925,2077.1,2076.1,3.16178963]
[1772781720873,3.26298925,2077.5,2076.3,3.39364683]
[1772781723076,3.26298925,2077.6,2076.3,3.39364683]
[1772781724076,3.26298925,2077.6,2076.4,3.39364683]
[1772781726584,3.26912538,2077.7,2076.5,3.63441683]